fUSD/lending_fUSD_20241016
["ID","MTS","AMOUNT","RATE_DAILY","PERIOD"]
[340323405,1729045851971,-500.0,0.00010958,2]
[340323406,1729045851980,-510.28224947,0.00010958,2]
[340323407,1729045851989,-500.0,0.00010958,2]
[340323408,1729045851998,-500.0,0.00010958,2]
[340323409,1729045852008,-500.0,0.00010958,2]
[340323410,1729045852018,-500.0,0.00010958,2]
[340323411,1729045852027,-511.61996579,0.00010958,2]
[340323412,1729045852037,-500.0,0.00010958,2]
[340323413,1729045852046,-524.71423444,0.00010958,2]
[340323414,1729045852056,-500.0,0.00010958,2]
[340323415,1729045852065,-500.0,0.00010958,2]
[340323416,1729045852075,-500.0,0.00010958,2]
[340323417,1729045852084,-500.0,0.00010958,2]
[340323418,1729045852094,-611.95975111,0.00010958,2]
[340323419,1729045852104,-410.74962838,0.00010958,2]
[340323420,1729045852114,-500.0,0.00010958,2]
[340323421,1729045852124,-500.0,0.00010958,2]
[340323422,1729045852134,-500.0,0.00010958,2]
[340323423,1729045852144,-500.0,0.00010958,2]
[340323424,1729045852154,-500.0,0.00010958,2]
[340323425,1729045852166,-265.33507974,0.00010958,2]
[340323426,1729045852176,-500.0,0.00010958,2]
[340323427,1729045852186,-500.0,0.00010958,2]
[340323428,1729045852196,-518.29800017,0.00010958,2]
[340323429,1729045852206,-190.3461789,0.00010958,2]
[340323430,1729045852216,-2022.44,0.00010958,2]
[340323431,1729045852226,-2022.44,0.00010958,2]
[340323432,1729045852236,-500.0,0.00010958,2]
[340323433,1729045852245,-2022.44,0.00010958,2]
[340323434,1729045852255,-515.39975981,0.00010958,2]
[340323435,1729045852264,-2022.44,0.00010958,2]
[340323436,1729045852274,-512.24413448,0.00010958,2]
[340323437,1729045852283,-2022.44,0.00010958,2]
[340323438,1729045852293,-500.0,0.00010958,2]
[340323439,1729045852303,-2022.44,0.00010958,2]
[340323440,1729045852312,-556.44792588,0.00010958,2]
[340323441,1729045852321,-2022.44,0.00010958,2]
[340323442,1729045852331,-565.51138174,0.00010958,2]
[340323443,1729045852340,-2022.44,0.00010958,2]
[340323444,1729045852349,-2022.44,0.00010958,2]
[340323445,1729045852358,-518.46995282,0.00010958,2]
[340323446,1729045852368,-500.0,0.00010958,2]
[340323447,1729045852377,-500.0,0.00010958,2]
[340323448,1729045852386,-1592.59,0.00010958,2]
[340323449,1729045852395,-540.75106583,0.00010958,2]
[340323450,1729045852404,-1947.07,0.00010958,2]
[340323451,1729045852413,-1592.59,0.00010958,2]
[340323452,1729045852423,-500.0,0.00010958,2]
[340323453,1729045852432,-1947.07,0.00010958,2]
[340323454,1729045852441,-1592.59,0.00010958,2]
[340323455,1729045852450,-523.22137132,0.00010958,2]
[340323456,1729045852460,-1947.07,0.00010958,2]
[340323457,1729045852469,-1592.59,0.00010958,2]
[340323458,1729045852479,-522.29374909,0.00010958,2]
[340323459,1729045852488,-1592.59,0.00010958,2]
[340323460,1729045852496,-1947.07,0.00010958,2]
[340323461,1729045852506,-1592.59,0.00010958,2]
[340323462,1729045852515,-1947.07,0.00010958,2]
[340323463,1729045852524,-1592.59,0.00010958,2]
[340323464,1729045852533,-1947.07,0.00010958,2]
[340323465,1729045852543,-1592.59,0.00010958,2]
[340323466,1729045852552,-1947.07,0.00010958,2]
[340323467,1729045852561,-500.0,0.00010958,2]
[340323468,1729045852571,-529.48314449,0.00010958,2]
[340323469,1729045852580,-234.9965516,0.00010958,2]
[340323470,1729045852589,-1592.59,0.00010958,2]
[340323471,1729045852599,-715.32,0.00010958,2]
[340323472,1729045852608,-715.32,0.00010958,2]
[340323473,1729045852617,-715.32,0.00010958,2]
[340323474,1729045852626,-715.32,0.00010958,2]
[340323475,1729045852635,-715.32,0.00010958,2]
[340323476,1729045852644,-555.03843086,0.00010958,2]
[340323477,1729045852654,-500.0,0.00010958,2]
[340323478,1729045852663,-715.32,0.00010958,2]
[340323479,1729045852672,-715.32,0.00010958,2]
[340323480,1729045852681,-518.51267553,0.00010958,2]
[340323481,1729045852691,-715.32,0.00010958,2]
[340323482,1729045852699,-715.32,0.00010958,2]
[340323483,1729045852708,-267.85377979,0.00010958,2]
[340323484,1729045852718,-715.32,0.00010958,2]
[340323485,1729045852727,-500.0,0.00010958,2]
[340323486,1729045852737,-524.32350425,0.00010958,2]
[340323487,1729045852746,-154.38061117,0.00010958,2]
[340323488,1729045852755,-515.8414917,0.00010958,2]
[340323489,1729045852764,-505.62466826,0.00010958,2]
[340323490,1729045852774,-1715.54,0.00010958,2]
[340323491,1729045852895,-517.26229479,0.00010958,2]
[340323492,1729045852904,-500.0,0.00010958,2]
[340323493,1729045852914,-1715.54,0.00010958,2]
[340323494,1729045852923,-500.0,0.00010958,2]
[340323495,1729045852932,-500.0,0.00010958,2]
[340323496,1729045852943,-1715.54,0.00010958,2]
[340323497,1729045852953,-500.0,0.00010958,2]
[340323498,1729045852962,-500.0,0.00010958,2]
[340323499,1729045852972,-500.0,0.00010958,2]
[340323500,1729045852982,-500.0,0.00010958,2]
[340323501,1729045852992,-500.0,0.00010958,2]
[340323502,1729045853001,-1057.1,0.00010958,2]
[340323503,1729045853011,-500.0,0.00010958,2]
[340323504,1729045853020,-1715.54,0.00010958,2]
[340323505,1729045853029,-500.0,0.00010958,2]
[340323506,1729045853038,-505.47486525,0.00010958,2]
[340323507,1729045853048,-1715.54,0.00010958,2]
[340323508,1729045853057,-1057.1,0.00010958,2]
[340323509,1729045853066,-506.57311964,0.00010958,2]
[340323510,1729045853075,-500.0,0.00010958,2]
[340323511,1729045853084,-1057.1,0.00010958,2]
[340323512,1729045853093,-1715.54,0.00010958,2]
[340323513,1729045853103,-536.72271229,0.00010958,2]
[340323514,1729045853112,-173.83165093,0.00010958,2]
[340323515,1729045853122,-1715.54,0.00010958,2]
[340323516,1729045853144,-1057.1,0.00010958,2]
[340323517,1729045853168,-500.0,0.00010958,2]
[340323518,1729045853208,-1057.1,0.00010958,2]
[340323519,1729045853248,-1715.54,0.00010958,2]
[340323520,1729045853287,-517.73906962,0.00010958,2]
[340323521,1729045853322,-1057.1,0.00010958,2]
[340323522,1729045853357,-1715.54,0.00010958,2]
[340323523,1729045853366,-1057.1,0.00010958,2]
[340323524,1729045853375,-1057.1,0.00010958,2]
[340323525,1729045853384,-1057.1,0.00010958,2]
[340323526,1729045853393,-1057.1,0.00010958,2]
[340323527,1729045853402,-564.61370494,0.00010958,2]
[340323528,1729045853411,-542.04,0.00010958,2]
[340323529,1729045853423,-542.04,0.00010958,2]
[340323530,1729045853432,-514.8510437,0.00010958,2]
[340323531,1729045853441,-542.04,0.00010958,2]
[340323532,1729045853450,-542.04,0.00010958,2]
[340323533,1729045853459,-1601.45,0.00010958,2]
[340323534,1729045853468,-542.04,0.00010958,2]
[340323535,1729045853477,-1377.32300461,0.00010958,2]
[340323536,1729045854244,-15678.84530788,0.00010835,2]
[340323537,1729045854253,-259.37471905,0.000109,2]
[340323538,1729045854263,-224.12699539,0.00010958,2]
[340323539,1729045854272,-1601.45,0.00010958,2]
[340323540,1729045854281,-500.0,0.00010958,2]
[340323541,1729045854290,-500.0,0.00010958,2]
[340323542,1729045854298,-542.04,0.00010958,2]
[340323543,1729045854307,-1601.45,0.00010958,2]
[340323544,1729045854316,-500.0,0.00010958,2]
[340323545,1729045854325,-500.0,0.00010958,2]
[340323546,1729045854335,-542.04,0.00010958,2]
[340323547,1729045854344,-529.83177548,0.00010958,2]
[340323548,1729045854353,-1601.45,0.00010958,2]
[340323549,1729045854362,-247.66376884,0.00010958,2]
[340323550,1729045854371,-522.10943352,0.00010958,2]
[340323551,1729045854381,-1601.45,0.00010958,2]
[340323552,1729045854390,-1601.45,0.00010958,2]
[340323553,1729045854399,-635.61234786,0.00010958,2]
[340323554,1729045854420,-965.83765214,0.00010958,2]
[340323555,1729045854430,-1601.45,0.00010958,2]
[340323556,1729045854439,-335.37988575,0.00010958,2]
[340323557,1729045854448,-1601.45,0.00010958,2]
[340323558,1729045854457,-500.0,0.00010958,2]
[340323559,1729045854466,-500.0,0.00010958,2]
[340323560,1729045854475,-500.0,0.00010958,2]
[340323561,1729045854484,-500.0,0.00010958,2]
[340323562,1729045854493,-500.0,0.00010958,2]
[340323563,1729045854503,-500.0,0.00010958,2]
[340323564,1729045854512,-294.74031587,0.00010958,2]
[340323565,1729045854521,-500.0,0.00010958,2]
[340323566,1729045854530,-500.0,0.00010958,2]
[340323567,1729045854539,-504.1567591,0.00010958,2]
[340323568,1729045854548,-504.47655485,0.00010958,2]
[340323569,1729045854557,-500.0,0.00010958,2]
[340323570,1729045854566,-548.61243046,0.00010958,2]
[340323571,1729045854575,-516.92111407,0.00010958,2]
[340323572,1729045854705,-698.26,0.00010958,2]
[340323573,1729045854715,-500.0,0.00010958,2]
[340323574,1729045854724,-500.0,0.00010958,2]
[340323575,1729045854733,-698.26,0.00010958,2]
[340323576,1729045854743,-1506.86,0.00010958,2]
[340323577,1729045854751,-540.70127051,0.00010958,2]
[340323578,1729045854760,-698.26,0.00010958,2]
[340323579,1729045854770,-1506.86,0.00010958,2]
[340323580,1729045854779,-527.08668221,0.00010958,2]
[340323581,1729045854788,-1506.86,0.00010958,2]
[340323582,1729045854797,-698.26,0.00010958,2]
[340323583,1729045854810,-1506.86,0.00010958,2]
[340323584,1729045854819,-500.0,0.00010958,2]
[340323585,1729045854828,-698.26,0.00010958,2]
[340323586,1729045854837,-1506.86,0.00010958,2]
[340323587,1729045854846,-214.87552236,0.00010958,2]
[340323588,1729045854855,-698.26,0.00010958,2]
[340323589,1729045854865,-1506.86,0.00010958,2]
[340323590,1729045854874,-698.26,0.00010958,2]
[340323591,1729045854885,-157.06248339,0.00010958,2]
[340323593,1729045922498,3485.72,0.00010161,2]
[340323594,1729045954166,167.17,0.0001016,2]
[340323595,1729045993308,2035.883914,0.00027,120]
[340323598,1729046066357,666.45,0.0001014,2]
[340323599,1729046116215,385.8,8.219e-05,2]
[340323600,1729046179889,250.0,0.00010039,2]
[340323601,1729046180309,172.08,8.002e-05,2]
[340323602,1729046180540,172.08,0.00010002,2]
[340323603,1729046193110,409.92,9.991e-05,2]
[340323604,1729046236523,454.59,9.978e-05,2]
[340323606,1729046263608,250.0,9.991e-05,2]
[340323607,1729046323782,-1207.85,0.00010475,2]
[340323608,1729046323808,-385.8,0.00010477,2]
[340323609,1729046323836,-150.0,0.0001059,2]
[340323610,1729046323856,-213.1934,0.00010591,2]
[340323611,1729046323878,-28229.9424,0.00010591,2]
[340323612,1729046323900,-31341.7445,0.00010591,2]
[340323613,1729046323921,-1000.0,0.00010591,2]
[340323614,1729046323941,-15678.84530788,0.00010591,2]
[340323615,1729046323963,-1007.0297,0.00010851,2]
[340323616,1729046323983,-156.59479323,0.00010858,2]
[340323617,1729046324004,-74997.0324,0.00010858,2]
[340323618,1729046324024,-2003.965,0.00010858,2]
[340323619,1729046324045,-1055.27917576,0.00010887,2]
[340323620,1729046324066,-1055.27917575,0.00010894,2]
[340323621,1729046324088,-591.94221099,0.00010899,2]
[340323622,1729046324110,-591.94221092,0.00010899,2]
[340323623,1729046324133,-591.94221092,0.00010899,2]
[340323624,1729046324157,-591.94221092,0.00010899,2]
[340323625,1729046324179,-591.94221092,0.00010899,2]
[340323626,1729046324203,-591.94221092,0.00010899,2]
[340323627,1729046324226,-591.94221092,0.00010899,2]
[340323628,1729046324249,-591.94221092,0.00010899,2]
[340323629,1729046324271,-591.94221092,0.00010899,2]
[340323630,1729046324292,-190.56957195,0.000109,2]
[340323631,1729046324314,-190.56957195,0.000109,2]
[340323632,1729046324334,-150.99,0.000109,2]
[340323633,1729046324356,-591.94221092,0.000109,2]
[340323634,1729046324376,-1055.27917575,0.000109,2]
[340323635,1729046324396,-176.364,0.00010914,2]
[340323636,1729046324417,-197.466,0.00010914,2]
[340323637,1729046324437,-4295.0730549,0.00010951,2]
[340323638,1729046324457,-18235.7728935,0.00010951,2]
[340323639,1729046324477,-933.6715721,0.00010951,2]
[340323640,1729046324497,-90241.7982831,0.00010951,2]
[340323641,1729046324518,-4472.597441,0.00010951,2]
[340323642,1729046324538,-16757.23,0.00010951,2]
[340323643,1729046324730,-1098.72437082,0.00010955,2]
[340323644,1729046324751,-738.0,0.00010958,2]
[340323645,1729046324772,-522.3673733,0.00010958,2]
[340323646,1729046324792,-500.0,0.00010958,2]
[340323647,1729046324812,-500.0,0.00010958,2]
[340323648,1729046324836,-500.0,0.00010958,2]
[340323649,1729046324857,-509.7377251,0.00010958,2]
[340323650,1729046324878,-500.0,0.00010958,2]
[340323651,1729046324900,-576.68100112,0.00010958,2]
[340323652,1729046324921,-500.0,0.00010958,2]
[340323653,1729046324942,-500.0,0.00010958,2]
[340323654,1729046324963,-500.0,0.00010958,2]
[340323655,1729046324984,-526.50462439,0.00010958,2]
[340323656,1729046325005,-500.0,0.00010958,2]
[340323657,1729046325027,-510.78549306,0.00010958,2]
[340323658,1729046325048,-500.0,0.00010958,2]
[340323659,1729046325070,-510.63184566,0.00010958,2]
[340323660,1729046325092,-538.57288197,0.00010958,2]
[340323661,1729046325114,-500.0,0.00010958,2]
[340323662,1729046325135,-555.36636786,0.00010958,2]
[340323663,1729046325160,-500.0,0.00010958,2]
[340323664,1729046325181,-500.0,0.00010958,2]
[340323665,1729046325206,-528.16372008,0.00010958,2]
[340323666,1729046325227,-500.0,0.00010958,2]
[340323667,1729046325249,-512.39761553,0.00010958,2]
[340323668,1729046325271,-556.91598268,0.00010958,2]
[340323669,1729046325291,-518.04065273,0.00010958,2]
[340323670,1729046325312,-1510.11,0.00010958,2]
[340323671,1729046325332,-1510.11,0.00010958,2]
[340323672,1729046325352,-1510.11,0.00010958,2]
[340323673,1729046325373,-1510.11,0.00010958,2]
[340323674,1729046325396,-1510.11,0.00010958,2]
[340323675,1729046325416,-1510.11,0.00010958,2]
[340323676,1729046325437,-1510.11,0.00010958,2]
[340323677,1729046325458,-518.0098463,0.00010958,2]
[340323678,1729046325479,-500.0,0.00010958,2]
[340323679,1729046325499,-520.60781174,0.00010958,2]
[340323680,1729046325520,-544.69224552,0.00010958,2]
[340323681,1729046325540,-518.98315165,0.00010958,2]
[340323682,1729046325560,-500.0,0.00010958,2]
[340323683,1729046325582,-500.0,0.00010958,2]
[340323684,1729046325602,-500.0,0.00010958,2]
[340323685,1729046325622,-500.0,0.00010958,2]
[340323686,1729046325642,-500.0,0.00010958,2]
[340323687,1729046325663,-500.0,0.00010958,2]
[340323688,1729046325684,-500.0,0.00010958,2]
[340323689,1729046325704,-500.0,0.00010958,2]
[340323690,1729046325725,-500.0,0.00010958,2]
[340323691,1729046325747,-500.0,0.00010958,2]
[340323692,1729046325768,-529.96596626,0.00010958,2]
[340323693,1729046325787,-1831.04,0.00010958,2]
[340323694,1729046325807,-1831.04,0.00010958,2]
[340323695,1729046325828,-1831.04,0.00010958,2]
[340323696,1729046325847,-561.6803653,0.00010958,2]
[340323697,1729046325868,-1831.04,0.00010958,2]
[340323698,1729046325889,-1831.04,0.00010958,2]
[340323699,1729046325909,-1831.04,0.00010958,2]
[340323700,1729046325928,-1831.04,0.00010958,2]
[340323701,1729046325949,-541.79037588,0.00010958,2]
[340323702,1729046325967,-500.0,0.00010958,2]
[340323703,1729046325983,-517.29781515,0.00010958,2]
[340323704,1729046326004,-513.35572064,0.00010958,2]
[340323705,1729046326024,-566.14590846,0.00010958,2]
[340323706,1729046326044,-516.55945263,0.00010958,2]
[340323707,1729046326064,-615.86186915,0.00010958,2]
[340323708,1729046326084,-500.0,0.00010958,2]
[340323709,1729046326104,-500.0,0.00010958,2]
[340323710,1729046326124,-500.0,0.00010958,2]
[340323711,1729046326355,-500.0,0.00010958,2]
[340323712,1729046326376,-500.0,0.00010958,2]
[340323713,1729046326397,-500.0,0.00010958,2]
[340323714,1729046326420,-500.0,0.00010958,2]
[340323715,1729046326443,-500.0,0.00010958,2]
[340323716,1729046326464,-500.0,0.00010958,2]
[340323717,1729046326487,-531.12710471,0.00010958,2]
[340323718,1729046326510,-475.44734722,0.00010958,2]
[340323719,1729046326532,-515.34667468,0.00010958,2]
[340323720,1729046326554,-500.0,0.00010958,2]
[340323721,1729046326574,-500.0,0.00010958,2]
[340323722,1729046326595,-500.0,0.00010958,2]
[340323723,1729046326619,-500.0,0.00010958,2]
[340323724,1729046326642,-500.0,0.00010958,2]
[340323725,1729046326663,-500.0,0.00010958,2]
[340323726,1729046326682,-500.0,0.00010958,2]
[340323727,1729046326702,-500.0,0.00010958,2]
[340323728,1729046326722,-500.0,0.00010958,2]
[340323729,1729046326742,-500.0,0.00010958,2]
[340323730,1729046326762,-500.0,0.00010958,2]
[340323731,1729046326782,-500.0,0.00010958,2]
[340323732,1729046326802,-500.0,0.00010958,2]
[340323733,1729046326823,-500.0,0.00010958,2]
[340323734,1729046326844,-500.0,0.00010958,2]
[340323735,1729046326863,-500.0,0.00010958,2]
[340323736,1729046326882,-500.0,0.00010958,2]
[340323737,1729046326902,-500.0,0.00010958,2]
[340323738,1729046326922,-558.45037076,0.00010958,2]
[340323739,1729046326943,-500.0,0.00010958,2]
[340323740,1729046326962,-535.24191164,0.00010958,2]
[340323741,1729046326982,-1220.08,0.00010958,2]
[340323742,1729046327002,-1220.08,0.00010958,2]
[340323743,1729046327029,-1220.08,0.00010958,2]
[340323744,1729046327050,-1220.08,0.00010958,2]
[340323745,1729046327072,-1220.08,0.00010958,2]
[340323746,1729046327093,-1220.08,0.00010958,2]
[340323747,1729046327113,-1220.08,0.00010958,2]
[340323748,1729046327133,-536.89514097,0.00010958,2]
[340323749,1729046327156,-584.80828901,0.00010958,2]
[340323750,1729046327176,-572.24958321,0.00010958,2]
[340323751,1729046327196,-555.03575676,0.00010958,2]
[340323752,1729046327217,-554.89692223,0.00010958,2]
[340323753,1729046327238,-522.91438827,0.00010958,2]
[340323754,1729046327258,-524.98485112,0.00010958,2]
[340323755,1729046327277,-545.7855242,0.00010958,2]
[340323756,1729046327296,-579.96372691,0.00010958,2]
[340323757,1729046327316,-508.83417709,0.00010958,2]
[340323758,1729046327336,-562.32384165,0.00010958,2]
[340323759,1729046327356,-574.51892245,0.00010958,2]
[340323760,1729046327376,-1677.74,0.00010958,2]
[340323761,1729046327396,-500.0,0.00010958,2]
[340323762,1729046327416,-1677.74,0.00010958,2]
[340323763,1729046327435,-500.0,0.00010958,2]
[340323764,1729046327456,-1677.74,0.00010958,2]
[340323765,1729046327476,-500.0,0.00010958,2]
[340323766,1729046327496,-530.70085125,0.00010958,2]
[340323767,1729046327517,-500.0,0.00010958,2]
[340323768,1729046327537,-500.0,0.00010958,2]
[340323769,1729046327557,-1677.74,0.00010958,2]
[340323770,1729046327577,-500.0,0.00010958,2]
[340323771,1729046327598,-500.0,0.00010958,2]
[340323772,1729046327618,-1677.74,0.00010958,2]
[340323773,1729046327637,-500.0,0.00010958,2]
[340323774,1729046327656,-500.0,0.00010958,2]
[340323775,1729046327676,-1677.74,0.00010958,2]
[340323776,1729046327695,-500.0,0.00010958,2]
[340323777,1729046327715,-595.21880295,0.00010958,2]
[340323778,1729046327735,-511.04701017,0.00010958,2]
[340323779,1729046327755,-1677.74,0.00010958,2]
[340323780,1729046327909,-500.0,0.00010958,2]
[340323781,1729046327930,-545.37420003,0.00010958,2]
[340323782,1729046327950,-524.78692909,0.00010958,2]
[340323783,1729046327971,-508.70899198,0.00010958,2]
[340323784,1729046327990,-525.64366507,0.00010958,2]
[340323785,1729046328010,-500.0,0.00010958,2]
[340323786,1729046328030,-1738.91,0.00010958,2]
[340323787,1729046328050,-1738.91,0.00010958,2]
[340323788,1729046328071,-1738.91,0.00010958,2]
[340323789,1729046328091,-1738.91,0.00010958,2]
[340323790,1729046328112,-1738.91,0.00010958,2]
[340323791,1729046328133,-1738.91,0.00010958,2]
[340323792,1729046328155,-1738.91,0.00010958,2]
[340323793,1729046328176,-1493.55,0.00010958,2]
[340323794,1729046328197,-1493.55,0.00010958,2]
[340323795,1729046328220,-1493.55,0.00010958,2]
[340323796,1729046328240,-1493.55,0.00010958,2]
[340323797,1729046328261,-541.86148007,0.00010958,2]
[340323798,1729046328282,-1493.55,0.00010958,2]
[340323799,1729046328303,-1493.55,0.00010958,2]
[340323800,1729046328327,-1493.55,0.00010958,2]
[340323801,1729046328348,-500.0,0.00010958,2]
[340323802,1729046328368,-512.42346309,0.00010958,2]
[340323803,1729046328388,-500.0,0.00010958,2]
[340323804,1729046328408,-500.0,0.00010958,2]
[340323805,1729046328427,-500.0,0.00010958,2]
[340323806,1729046328448,-500.0,0.00010958,2]
[340323807,1729046328472,-500.0,0.00010958,2]
[340323808,1729046328494,-500.0,0.00010958,2]
[340323809,1729046328514,-500.0,0.00010958,2]
[340323810,1729046328535,-500.0,0.00010958,2]
[340323811,1729046328556,-631.47166017,0.00010958,2]
[340323812,1729046328578,-500.0,0.00010958,2]
[340323813,1729046328598,-516.42390382,0.00010958,2]
[340323814,1729046328619,-500.0,0.00010958,2]
[340323815,1729046328638,-500.0,0.00010958,2]
[340323816,1729046328659,-541.66329445,0.00010958,2]
[340323817,1729046328679,-505.8406203,0.00010958,2]
[340323818,1729046328700,-518.6380992,0.00010958,2]
[340323819,1729046328720,-500.0,0.00010958,2]
[340323820,1729046328741,-532.12555441,0.00010958,2]
[340323821,1729046328761,-504.25849792,0.00010958,2]
[340323822,1729046328782,-507.91738898,0.00010958,2]
[340323823,1729046328803,-522.2321516,0.00010958,2]
[340323824,1729046328825,-575.00631752,0.00010958,2]
[340323825,1729046328846,-513.2734957,0.00010958,2]
[340323826,1729046328866,-508.24587834,0.00010958,2]
[340323827,1729046328886,-500.0,0.00010958,2]
[340323828,1729046328906,-552.91004723,0.00010958,2]
[340323829,1729046328926,-525.6654709,0.00010958,2]
[340323830,1729046328947,-512.199686,0.00010958,2]
[340323831,1729046328967,-500.0,0.00010958,2]
[340323832,1729046328988,-522.85764238,0.00010958,2]
[340323833,1729046329007,-500.0,0.00010958,2]
[340323834,1729046329028,-500.0,0.00010958,2]
[340323835,1729046329047,-336.22195363,0.00010958,2]
[340323836,1729046329069,-500.0,0.00010958,2]
[340323837,1729046329090,-500.0,0.00010958,2]
[340323838,1729046329111,-524.39061239,0.00010958,2]
[340323839,1729046329132,-500.0,0.00010958,2]
[340323840,1729046329156,-500.0,0.00010958,2]
[340323841,1729046329176,-280.93267311,0.00010958,2]
[340323842,1729046329201,-500.0,0.00010958,2]
[340323843,1729046329222,-601.67003955,0.00010958,2]
[340323844,1729046329243,-512.6032341,0.00010958,2]
[340323845,1729046329263,-500.0,0.00010958,2]
[340323846,1729046329284,-500.0,0.00010958,2]
[340323847,1729046329305,-500.0,0.00010958,2]
[340323848,1729046329327,-500.0,0.00010958,2]
[340323849,1729046329347,-500.0,0.00010958,2]
[340323850,1729046329367,-500.0,0.00010958,2]
[340323851,1729046329388,-500.0,0.00010958,2]
[340323852,1729046329408,-500.0,0.00010958,2]
[340323853,1729046329428,-500.0,0.00010958,2]
[340323854,1729046329449,-504.86794863,0.00010958,2]
[340323855,1729046329469,-500.0,0.00010958,2]
[340323856,1729046329489,-512.53394225,0.00010958,2]
[340323857,1729046329509,-500.0,0.00010958,2]
[340323858,1729046329530,-167.68314575,0.00010958,2]
[340323859,1729046329550,-515.91546667,0.00010958,2]
[340323860,1729046329572,-500.0,0.00010958,2]
[340323861,1729046329593,-509.22694816,0.00010958,2]
[340323862,1729046329614,-500.0,0.00010958,2]
[340323863,1729046329635,-524.99837275,0.00010958,2]
[340323864,1729046329655,-500.0,0.00010958,2]
[340323865,1729046329675,-500.0,0.00010958,2]
[340323866,1729046329700,-528.89930956,0.00010958,2]
[340323867,1729046329720,-500.0,0.00010958,2]
[340323868,1729046329742,-509.62343695,0.00010958,2]
[340323869,1729046329763,-500.0,0.00010958,2]
[340323870,1729046329784,-500.0,0.00010958,2]
[340323871,1729046329805,-500.0,0.00010958,2]
[340323872,1729046329826,-500.0,0.00010958,2]
[340323873,1729046329848,-500.0,0.00010958,2]
[340323874,1729046329869,-511.35021673,0.00010958,2]
[340323875,1729046329890,-500.0,0.00010958,2]
[340323876,1729046329911,-500.0,0.00010958,2]
[340323877,1729046329932,-550.41285322,0.00010958,2]
[340323878,1729046329955,-508.93578117,0.00010958,2]
[340323879,1729046329976,-500.0,0.00010958,2]
[340323880,1729046329996,-500.0,0.00010958,2]
[340323881,1729046330017,-500.0,0.00010958,2]
[340323882,1729046330038,-500.0,0.00010958,2]
[340323883,1729046330059,-500.0,0.00010958,2]
[340323884,1729046330081,-500.0,0.00010958,2]
[340323885,1729046330103,-500.0,0.00010958,2]
[340323886,1729046330124,-500.0,0.00010958,2]
[340323887,1729046330145,-500.0,0.00010958,2]
[340323888,1729046330168,-500.0,0.00010958,2]
[340323889,1729046330188,-500.0,0.00010958,2]
[340323890,1729046330209,-500.0,0.00010958,2]
[340323891,1729046330230,-500.0,0.00010958,2]
[340323892,1729046330251,-500.0,0.00010958,2]
[340323893,1729046330273,-500.0,0.00010958,2]
[340323894,1729046330294,-500.0,0.00010958,2]
[340323895,1729046330316,-500.0,0.00010958,2]
[340323896,1729046330338,-507.54247642,0.00010958,2]
[340323897,1729046330358,-509.50144198,0.00010958,2]
[340323898,1729046330380,-500.0,0.00010958,2]
[340323899,1729046330400,-500.0,0.00010958,2]
[340323900,1729046330420,-166.65430315,0.00010958,2]
[340323901,1729046330440,-500.0,0.00010958,2]
[340323902,1729046330461,-500.0,0.00010958,2]
[340323903,1729046330481,-1252.9,0.00010958,2]
[340323904,1729046330503,-243.11653478,0.00010958,2]
[340323905,1729046330524,-1252.9,0.00010958,2]
[340323906,1729046330545,-1252.9,0.00010958,2]
[340323907,1729046330565,-1252.9,0.00010958,2]
[340323908,1729046330586,-1252.9,0.00010958,2]